fUST/lending_fUST_20240803
["ID","MTS","AMOUNT","RATE_DAILY","PERIOD"]
[333941455,1722641442394,-500.0,0.00013698,2]
[333941456,1722641442403,-553.998397,0.00013699,2]
[333941457,1722641442413,-150.112233,0.000137,2]
[333941458,1722641442424,-2000.0,0.00013872,2]
[333941459,1722641442434,-3880.86511596,0.000139,2]
[333941460,1722641442445,-150.112233,0.000139,2]
[333941461,1722641442457,-500.0,0.00013961,2]
[333941462,1722641442468,-26925.6263682,0.00013962,2]
[333941463,1722641442479,-500.0,0.00013971,2]
[333941464,1722641442490,-1133.98,0.00013971,2]
[333941465,1722641442501,-533.35139556,0.00013972,2]
[333941466,1722641442514,-500.0,0.00013972,2]
[333941467,1722641442524,-500.0,0.00013972,2]
[333941468,1722641442534,-500.0,0.00013972,2]
[333941469,1722641442544,-500.0,0.00013972,2]
[333941471,1722641442555,-447.8323181,0.00013972,2]
[333941473,1722641442565,-500.0,0.00013972,2]
[333941475,1722641442576,-500.0,0.00013972,2]
[333941477,1722641442586,-500.0,0.00013972,2]
[333941478,1722641442597,-500.0,0.00013972,2]
[333941479,1722641442607,-500.0,0.00013972,2]
[333941480,1722641442616,-500.0,0.00013972,2]
[333941481,1722641442626,-500.0,0.00013972,2]
[333941482,1722641442636,-500.0,0.00013972,2]
[333941483,1722641442646,-500.0,0.00013972,2]
[333941484,1722641442656,-500.0,0.00013972,2]
[333941485,1722641442665,-500.0,0.00013972,2]
[333941486,1722641442676,-500.0,0.00013972,2]
[333941487,1722641442688,-500.0,0.00013972,2]
[333941488,1722641442698,-500.0,0.00013972,2]
[333941489,1722641442708,-500.0,0.00013972,2]
[333941490,1722641442718,-500.0,0.00013972,2]
[333941491,1722641442729,-500.0,0.00013972,2]
[333941492,1722641442744,-500.0,0.00013972,2]
[333941493,1722641442754,-500.0,0.00013972,2]
[333941494,1722641442764,-500.0,0.00013972,2]
[333941495,1722641442775,-500.0,0.00013972,2]
[333941496,1722641442785,-500.0,0.00013972,2]
[333941497,1722641442795,-500.0,0.00013972,2]
[333941498,1722641442805,-500.0,0.00013972,2]
[333941499,1722641442816,-500.0,0.00013972,2]
[333941500,1722641442827,-500.0,0.00013972,2]
[333941501,1722641442837,-500.0,0.00013972,2]
[333941502,1722641442847,-500.0,0.00013972,2]
[333941503,1722641442985,-409.64230712,0.00013972,2]
[333941504,1722641442995,-500.0,0.00013972,2]
[333941505,1722641443006,-500.0,0.00013972,2]
[333941507,1722641443015,-500.0,0.00013972,2]
[333941508,1722641443024,-500.0,0.00013972,2]
[333941510,1722641443033,-500.0,0.00013972,2]
[333941512,1722641443042,-500.0,0.00013972,2]
[333941514,1722641443052,-500.0,0.00013972,2]
[333941515,1722641443062,-500.0,0.00013972,2]
[333941517,1722641443071,-500.0,0.00013972,2]
[333941519,1722641443081,-500.0,0.00013972,2]
[333941520,1722641443091,-500.0,0.00013972,2]
[333941521,1722641443100,-500.0,0.00013972,2]
[333941522,1722641443110,-500.0,0.00013972,2]
[333941523,1722641443120,-500.0,0.00013972,2]
[333941524,1722641443130,-596.74426326,0.00013972,2]
[333941525,1722641443141,-500.0,0.00013972,2]
[333941526,1722641443151,-175.34251172,0.00013972,2]
[333941527,1722641443160,-500.0,0.00013972,2]
[333941528,1722641443171,-500.0,0.00013972,2]
[333941529,1722641443181,-520.96,0.00013972,2]
[333941530,1722641443190,-500.0,0.00013972,2]
[333941531,1722641443200,-500.0,0.00013972,2]
[333941533,1722641443209,-2956.92,0.00013972,2]
[333941534,1722641443218,-501.77,0.00013972,2]
[333941535,1722641443228,-931.84,0.00013972,2]
[333941536,1722641443238,-500.0,0.00013972,2]
[333941537,1722641443247,-500.0,0.00013972,2]
[333941538,1722641443257,-500.0,0.00013972,2]
[333941539,1722641443267,-500.0,0.00013972,2]
[333941540,1722641443278,-500.0,0.00013972,2]
[333941541,1722641443288,-500.0,0.00013972,2]
[333941542,1722641443297,-235.00491695,0.00013972,2]
[333941543,1722641443307,-500.0,0.00013972,2]
[333941544,1722641443316,-500.0,0.00013972,2]
[333941545,1722641443326,-500.0,0.00013972,2]
[333941546,1722641443334,-500.0,0.00013972,2]
[333941547,1722641443343,-500.0,0.00013972,2]
[333941548,1722641443353,-754.85,0.00013972,2]
[333941549,1722641443362,-500.0,0.00013972,2]
[333941550,1722641443371,-500.0,0.00013972,2]
[333941551,1722641443380,-1408.65,0.00013972,2]
[333941552,1722641443392,-500.0,0.00013972,2]
[333941553,1722641443402,-617.47,0.00013972,2]
[333941554,1722641443412,-500.0,0.00013972,2]
[333941555,1722641443423,-500.0,0.00013972,2]
[333941556,1722641443433,-500.0,0.00013972,2]
[333941557,1722641443443,-500.0,0.00013972,2]
[333941558,1722641443453,-500.0,0.00013972,2]
[333941559,1722641443463,-500.0,0.00013972,2]
[333941560,1722641443473,-500.0,0.00013972,2]
[333941561,1722641443483,-679.51,0.00013972,2]
[333941562,1722641443492,-500.0,0.00013972,2]
[333941563,1722641443502,-500.0,0.00013972,2]
[333941564,1722641443511,-500.0,0.00013972,2]
[333941565,1722641443521,-500.0,0.00013972,2]
[333941566,1722641443531,-500.0,0.00013972,2]
[333941567,1722641443541,-500.0,0.00013972,2]
[333941568,1722641443551,-500.0,0.00013972,2]
[333941569,1722641443561,-500.0,0.00013972,2]
[333941570,1722641443570,-500.0,0.00013972,2]
[333941571,1722641443579,-500.0,0.00013972,2]
[333941572,1722641443589,-500.0,0.00013972,2]
[333941573,1722641443598,-500.0,0.00013972,2]
[333941574,1722641443609,-500.0,0.00013972,2]
[333941575,1722641443619,-500.0,0.00013972,2]
[333941576,1722641443628,-500.0,0.00013972,2]
[333941577,1722641443640,-500.0,0.00013972,2]
[333941578,1722641443653,-500.0,0.00013972,2]
[333941579,1722641443663,-500.0,0.00013972,2]
[333941580,1722641443674,-500.0,0.00013972,2]
[333941581,1722641443683,-500.0,0.00013972,2]
[333941582,1722641443693,-530.83,0.00013972,2]
[333941583,1722641443703,-281.42848548,0.00013972,2]
[333941584,1722641443712,-500.0,0.00013972,2]
[333941585,1722641443722,-500.0,0.00013972,2]
[333941587,1722641443735,-500.0,0.00013972,2]
[333941589,1722641443744,-500.0,0.00013972,2]
[333941591,1722641443753,-500.0,0.00013972,2]
[333941592,1722641443763,-500.0,0.00013972,2]
[333941593,1722641443775,-500.0,0.00013972,2]
[333941595,1722641443785,-500.0,0.00013972,2]
[333941597,1722641443804,-500.0,0.00013972,2]
[333941598,1722641443817,-500.0,0.00013972,2]
[333941599,1722641443827,-567.21,0.00013972,2]
[333941600,1722641443837,-500.0,0.00013972,2]
[333941601,1722641443848,-808.41,0.00013972,2]
[333941602,1722641443858,-500.0,0.00013972,2]
[333941604,1722641443868,-500.0,0.00013972,2]
[333941606,1722641443879,-500.0,0.00013972,2]
[333941607,1722641443892,-500.0,0.00013972,2]
[333941608,1722641443903,-2019.82,0.00013972,2]
[333941609,1722641443913,-500.0,0.00013972,2]
[333941610,1722641443922,-574.61,0.00013972,2]
[333941611,1722641443931,-500.0,0.00013972,2]
[333941612,1722641443941,-500.0,0.00013972,2]
[333941613,1722641443951,-500.0,0.00013972,2]
[333941614,1722641443961,-500.0,0.00013972,2]
[333941615,1722641443970,-661.32,0.00013972,2]
[333941616,1722641443980,-500.0,0.00013972,2]
[333941617,1722641443989,-500.0,0.00013972,2]
[333941618,1722641444000,-500.0,0.00013972,2]
[333941619,1722641444011,-500.0,0.00013972,2]
[333941620,1722641444022,-500.0,0.00013972,2]
[333941621,1722641444031,-500.0,0.00013999,2]
[333941622,1722641444041,-150.112233,0.00014,2]
[333941623,1722641444052,-157.559926,0.00014147,2]
[333941624,1722641444063,-191.433445,0.00014147,2]
[333941625,1722641444073,-156.012053,0.00014147,2]
[333941626,1722641444084,-150.112233,0.000142,2]
[333941627,1722641444094,-13462.8131841,0.00014236,2]
[333941628,1722641444104,-1133.98,0.00014244,2]
[333941629,1722641444114,-500.0,0.00014245,2]
[333941630,1722641444124,-2193.54,0.00014245,2]
[333941631,1722641444134,-500.0,0.00014245,2]
[333941632,1722641444148,-1133.98,0.00014245,2]
[333941633,1722641444158,-500.0,0.00014245,2]
[333941634,1722641444167,-500.0,0.00014246,2]
[333941635,1722641444177,-379.22220257,0.00014246,2]
[333941636,1722641444187,-500.0,0.00014246,2]
[333941637,1722641444196,-500.0,0.00014246,2]
[333941638,1722641444208,-500.0,0.00014246,2]
[333941639,1722641444220,-500.0,0.00014246,2]
[333941640,1722641444231,-500.0,0.00014246,2]
[333941641,1722641444241,-500.0,0.00014246,2]
[333941642,1722641444251,-572.6299897,0.00014246,2]
[333941643,1722641444260,-500.0,0.00014246,2]
[333941644,1722641444270,-500.0,0.00014246,2]
[333941645,1722641444280,-500.0,0.00014246,2]
[333941646,1722641444289,-500.0,0.00014246,2]
[333941647,1722641444299,-500.0,0.00014246,2]
[333941648,1722641444309,-500.0,0.00014246,2]
[333941649,1722641444319,-500.0,0.00014246,2]
[333941650,1722641444328,-500.0,0.00014246,2]
[333941651,1722641444338,-500.0,0.00014246,2]
[333941652,1722641444347,-500.0,0.00014246,2]
[333941653,1722641444357,-500.0,0.00014246,2]
[333941654,1722641444366,-500.0,0.00014246,2]
[333941655,1722641444376,-500.0,0.00014246,2]
[333941656,1722641444385,-500.0,0.00014246,2]
[333941657,1722641444397,-500.0,0.00014246,2]
[333941658,1722641444406,-500.0,0.00014246,2]
[333941659,1722641444417,-500.0,0.00014246,2]
[333941660,1722641444427,-500.0,0.00014246,2]
[333941661,1722641444437,-500.0,0.00014246,2]
[333941662,1722641444447,-500.0,0.00014246,2]
[333941663,1722641444458,-318.92863212,0.00014246,2]
[333941664,1722641444468,-500.0,0.00014246,2]
[333941665,1722641444478,-500.0,0.00014246,2]
[333941666,1722641444487,-500.0,0.00014246,2]
[333941667,1722641444497,-2956.92,0.00014246,2]
[333941668,1722641444507,-501.77,0.00014246,2]
[333941669,1722641444516,-931.84,0.00014246,2]
[333941670,1722641444526,-500.0,0.00014246,2]
[333941671,1722641444536,-500.0,0.00014246,2]
[333941672,1722641444546,-500.0,0.00014246,2]
[333941673,1722641444555,-500.0,0.00014246,2]
[333941674,1722641444565,-500.0,0.00014246,2]
[333941675,1722641444575,-500.0,0.00014246,2]
[333941676,1722641444586,-500.0,0.00014246,2]
[333941677,1722641444596,-229.54,0.00014246,2]
[333941678,1722641444607,-754.85,0.00014246,2]
[333941679,1722641444619,-500.0,0.00014246,2]
[333941680,1722641444630,-500.0,0.00014246,2]
[333941681,1722641444641,-1408.65,0.00014246,2]
[333941682,1722641444652,-617.47,0.00014246,2]
[333941683,1722641444663,-500.0,0.00014246,2]
[333941684,1722641444673,-500.0,0.00014246,2]
[333941685,1722641444685,-500.0,0.00014246,2]
[333941686,1722641444695,-500.0,0.00014246,2]
[333941687,1722641444705,-500.0,0.00014246,2]
[333941688,1722641444714,-500.0,0.00014246,2]
[333941689,1722641444723,-679.51,0.00014246,2]
[333941690,1722641444735,-500.0,0.00014246,2]
[333941691,1722641444747,-579.08,0.00014246,2]
[333941692,1722641444756,-500.0,0.00014246,2]
[333941693,1722641444767,-500.0,0.00014246,2]
[333941694,1722641444776,-500.0,0.00014246,2]
[333941695,1722641444787,-500.0,0.00014246,2]
[333941696,1722641444797,-500.0,0.00014246,2]
[333941697,1722641444807,-500.0,0.00014246,2]
[333941698,1722641444817,-500.0,0.00014246,2]
[333941699,1722641444827,-500.0,0.00014246,2]
[333941700,1722641444837,-500.0,0.00014246,2]
[333941701,1722641444846,-500.0,0.00014246,2]
[333941702,1722641444856,-500.0,0.00014246,2]
[333941703,1722641444866,-500.0,0.00014246,2]
[333941705,1722641444877,-500.0,0.00014246,2]
[333941707,1722641444888,-530.83,0.00014246,2]
[333941708,1722641444899,-500.0,0.00014246,2]
[333941710,1722641444910,-500.0,0.00014246,2]
[333941711,1722641444920,-500.0,0.00014246,2]
[333941713,1722641444930,-500.0,0.00014246,2]
[333941716,1722641444940,-500.0,0.00014246,2]
[333941718,1722641444949,-500.0,0.00014246,2]
[333941719,1722641444958,-455.6842782,0.00014246,2]
[333941722,1722641444967,-500.0,0.00014246,2]
[333941724,1722641444978,-500.0,0.00014246,2]
[333941726,1722641444988,-500.0,0.00014246,2]
[333941728,1722641444998,-567.21,0.00014246,2]
[333941730,1722641445008,-500.0,0.00014246,2]
[333941732,1722641445020,-808.41,0.00014246,2]
[333941734,1722641445031,-522.45691885,0.00014246,2]
[333941736,1722641445040,-500.0,0.00014246,2]
[333941738,1722641445049,-500.0,0.00014246,2]
[333941740,1722641445060,-1505.84407166,0.00014246,2]
[333941749,1722641445243,-500.0,0.00013698,2]
[333941750,1722641445255,-335.9,0.00013972,2]
[333941751,1722641445266,-513.97592834,0.00014246,2]
[333941752,1722641445276,-500.0,0.00014246,2]
[333941753,1722641445287,-574.61,0.00014246,2]
[333941754,1722641445298,-500.0,0.00014246,2]
[333941755,1722641445308,-500.0,0.00014246,2]
[333941756,1722641445318,-500.0,0.00014246,2]
[333941757,1722641445327,-565.69767578,0.00014246,2]
[333941758,1722641445339,-95.62232422,0.00014246,2]
[333941759,1722641445348,-500.0,0.00014246,2]
[333941760,1722641445357,-500.0,0.00014246,2]
[333941761,1722641445367,-500.0,0.00014246,2]
[333941762,1722641445376,-750.0,0.00014247,2]
[333941763,1722641445386,-150.112233,0.000145,2]
[333941764,1722641445397,-7739.54318365,0.0001451,2]
[333941803,1722641447904,-500.0,0.00013698,2]
[333941805,1722641447914,-5723.27000045,0.0001451,2]
[333941807,1722641447923,-500.0,0.00014517,2]
[333941809,1722641447933,-500.0,0.00014519,2]
[333941811,1722641447942,-2193.54,0.00014519,2]
[333941813,1722641447952,-500.0,0.00014519,2]
[333941815,1722641447961,-1133.98,0.00014519,2]
[333941817,1722641447971,-500.0,0.0001452,2]
[333941819,1722641447980,-500.0,0.0001452,2]
[333941820,1722641447989,-500.0,0.0001452,2]
[333941822,1722641447998,-500.0,0.0001452,2]
[333941824,1722641448008,-500.0,0.0001452,2]
[333941826,1722641448018,-500.0,0.0001452,2]
[333941828,1722641448027,-500.0,0.0001452,2]
[333941829,1722641448036,-500.0,0.0001452,2]
[333941830,1722641448045,-500.0,0.0001452,2]
[333941831,1722641448055,-500.0,0.0001452,2]
[333941832,1722641448064,-312.49511811,0.0001452,2]
[333941833,1722641448074,-500.0,0.0001452,2]
[333941834,1722641448083,-2956.92,0.0001452,2]
[333941835,1722641448093,-501.77,0.0001452,2]
[333941836,1722641448102,-931.84,0.0001452,2]
[333941837,1722641448111,-500.0,0.0001452,2]
[333941838,1722641448120,-500.0,0.0001452,2]
[333941839,1722641448130,-500.0,0.0001452,2]
[333941840,1722641448139,-500.0,0.0001452,2]
[333941841,1722641448149,-500.0,0.0001452,2]
[333941842,1722641448159,-754.85,0.0001452,2]
[333941843,1722641448168,-500.0,0.0001452,2]
[333941844,1722641448178,-1408.65,0.0001452,2]
[333941845,1722641448187,-617.47,0.0001452,2]
[333941846,1722641448198,-500.0,0.0001452,2]
[333941847,1722641448207,-500.0,0.0001452,2]
[333941848,1722641448217,-500.0,0.0001452,2]
[333941849,1722641448227,-500.0,0.0001452,2]
[333941850,1722641448236,-500.0,0.0001452,2]
[333941851,1722641448246,-500.0,0.0001452,2]
[333941852,1722641448255,-679.51,0.0001452,2]
[333941853,1722641448265,-500.0,0.0001452,2]
[333941854,1722641448275,-500.0,0.0001452,2]
[333941855,1722641448286,-370.55,0.0001452,2]
[333941856,1722641448295,-500.0,0.0001452,2]
[333941857,1722641448305,-500.0,0.0001452,2]
[333941858,1722641448315,-500.0,0.0001452,2]
[333941859,1722641448325,-500.0,0.0001452,2]
[333941860,1722641448336,-500.0,0.0001452,2]
[333941861,1722641448346,-500.0,0.0001452,2]
[333941862,1722641448356,-530.83,0.0001452,2]
[333941863,1722641448366,-500.0,0.0001452,2]
[333941864,1722641448375,-500.0,0.0001452,2]
[333941865,1722641448387,-361.45687368,0.0001452,2]
[333941866,1722641448397,-500.0,0.0001452,2]
[333941867,1722641448407,-500.0,0.0001452,2]
[333941868,1722641448417,-500.0,0.0001452,2]
[333941869,1722641448426,-500.0,0.0001452,2]
[333941870,1722641448436,-457.7,0.0001452,2]
[333941871,1722641448446,-567.21,0.0001452,2]
[333941872,1722641448456,-500.0,0.0001452,2]
[333941873,1722641448467,-808.41,0.0001452,2]
[333941874,1722641448477,-500.0,0.0001452,2]
[333941875,1722641448486,-2019.82,0.0001452,2]
[333941876,1722641448496,-500.0,0.0001452,2]
[333941877,1722641448505,-574.61,0.0001452,2]
[333941878,1722641448515,-500.0,0.0001452,2]
[333941879,1722641448525,-500.0,0.0001452,2]
[333941880,1722641448534,-661.32,0.0001452,2]
[333941881,1722641448544,-267.31468972,0.0001452,2]
[333941882,1722641448553,-500.0,0.0001452,2]
[333941883,1722641448563,-4536.45986595,0.00014549,2]
[333941884,1722641448572,-200.0,0.00014637,2]
[333941885,1722641448582,-458.09152615,0.00014679,2]
[333941886,1722641448592,-500.0,0.00014679,2]
[333941887,1722641448602,-500.0,0.00014679,2]
[333941888,1722641448612,-500.0,0.00014679,2]
[333941889,1722641448622,-500.0,0.00014679,2]
[333941890,1722641448631,-500.0,0.00014679,2]
[333941891,1722641448642,-500.0,0.00014679,2]
[333941892,1722641448651,-500.0,0.00014679,2]
[333941893,1722641448661,-500.0,0.00014679,2]
[333941894,1722641448671,-500.0,0.00014679,2]
[333941895,1722641448680,-500.0,0.00014679,2]
[333941896,1722641448690,-500.0,0.00014679,2]
[333941897,1722641448699,-13462.8131841,0.0001468,2]
[333941898,1722641448708,-150.112233,0.000147,2]
[333941899,1722641448718,-153.0,0.00014702,2]
[333941900,1722641448727,-306.0,0.00014702,2]
[333941901,1722641448741,-322.51343963,0.00014738,2]
[333941902,1722641448750,-13462.8131841,0.00014784,2]
[333941903,1722641448760,-500.0,0.00014793,2]
[333941904,1722641448769,-500.0,0.00014793,2]
[333941905,1722641448779,-2193.54,0.00014793,2]
[333941906,1722641448788,-500.0,0.00014793,2]
[333941907,1722641448798,-1133.98,0.00014793,2]
[333941908,1722641448807,-7024.96308817,0.00014794,5]
[333941909,1722641448817,-154.79103211,0.00014794,2]
[333941910,1722641448827,-1988.04997954,0.00014794,2]
[333941911,1722641448836,-496.5675832,0.00014794,2]
[333941912,1722641448845,-1699.19579432,0.00014794,2]
[333941913,1722641448855,-500.0,0.00014794,2]
[333941914,1722641448868,-500.0,0.00014794,2]
[333941915,1722641448877,-260.88,0.00014794,2]
[333941916,1722641448887,-500.0,0.00014794,2]
[333941917,1722641448903,-500.0,0.00014794,2]
[333941918,1722641448913,-500.0,0.00014794,2]
[333941919,1722641448922,-309.98,0.00014794,2]
[333941920,1722641448932,-2956.92,0.00014794,2]
[333941921,1722641448941,-501.77,0.00014794,2]
[333941922,1722641448951,-931.84,0.00014794,2]
[333941923,1722641448960,-500.0,0.00014794,2]
[333941924,1722641448970,-500.0,0.00014794,2]
[333941925,1722641448979,-500.0,0.00014794,2]
[333941926,1722641448989,-500.0,0.00014794,2]
[333941927,1722641448999,-500.0,0.00014794,2]
[333941928,1722641449008,-754.85,0.00014794,2]
[333941929,1722641449017,-500.0,0.00014794,2]
[333941930,1722641449027,-1408.65,0.00014794,2]
[333941931,1722641449036,-617.47,0.00014794,2]
[333941932,1722641449046,-500.0,0.00014794,2]
[333941933,1722641449055,-500.0,0.00014794,2]
[333941934,1722641449065,-500.0,0.00014794,2]
[333941935,1722641449075,-500.0,0.00014794,2]
[333941936,1722641449084,-636.24,0.00014794,2]
[333941937,1722641449094,-500.0,0.00014794,2]
[333941938,1722641449105,-679.51,0.00014794,2]
[333941939,1722641449116,-500.0,0.00014794,2]
[333941940,1722641449126,-500.0,0.00014794,2]
[333941941,1722641449135,-402.16,0.00014794,2]
[333941942,1722641449147,-500.0,0.00014794,2]
[333941943,1722641449156,-500.0,0.00014794,2]
[333941944,1722641449166,-500.0,0.00014794,2]
[333941945,1722641449175,-500.0,0.00014794,2]
[333941946,1722641449185,-530.83,0.00014794,2]
[333941947,1722641449194,-500.0,0.00014794,2]
[333941948,1722641449204,-391.76,0.00014794,2]
[333941949,1722641449214,-500.0,0.00014794,2]
[333941950,1722641449226,-500.0,0.00014794,2]
[333941951,1722641449236,-567.21,0.00014794,2]
[333941952,1722641449245,-808.41,0.00014794,2]
[333941953,1722641449255,-500.0,0.00014794,2]
[333941954,1722641449265,-500.0,0.00014794,2]
[333941955,1722641449275,-2019.82,0.00014794,2]
[333941956,1722641449285,-500.0,0.00014794,2]
[333941957,1722641449295,-574.61,0.00014794,2]
[333941958,1722641449306,-500.0,0.00014794,2]
[333941959,1722641449316,-500.0,0.00014794,2]
[333941960,1722641449326,-661.32,0.00014794,2]
[333941961,1722641449337,-500.0,0.00014794,2]
[333941962,1722641449348,-156.012052,0.00014854,2]
[333941963,1722641449358,-150.112233,0.000149,2]
[333941964,1722641449368,-7504.74537571,0.00014968,2]
[333941967,1722641531965,163.28779954,9.999e-05,2]
[333942009,1722641624680,285.14370431,9.999e-05,2]
[333942010,1722641704591,309.52024362,9.999e-05,2]
[333942011,1722641716318,519.51133137,9.999e-05,2]
[333942012,1722641739242,628.45453856,9.999e-05,2]
[333942013,1722641745776,154.9725522,9.999e-05,2]
[333942014,1722641804834,429.41056501,9.999e-05,2]
[333942015,1722641811892,778.99945191,9.999e-05,2]
[333942016,1722641855644,309.93700524,9.999e-05,2]
[333942017,1722641859898,375.56569674,9.999e-05,2]
[333942018,1722641903486,188.20214176,9.999e-05,2]
[333942020,1722642000038,173.31085273,9.999e-05,2]
[333942021,1722642002668,189.33829521,9.999e-05,2]
[333942022,1722642006474,187.94542504,9.999e-05,2]
[333942024,1722642029749,182.55785908,9.999e-05,2]
[333942025,1722642130452,256.14336745,9.999e-05,2]
[333942026,1722642162350,288.48298831,9.999e-05,2]
[333942027,1722642204192,600.64941248,9.999e-05,2]
[333942028,1722642219930,209.83309509,9.999e-05,2]
[333942030,1722642235053,209.83309509,9.999e-05,2]
[333942031,1722642250345,288.08689431,9.999e-05,2]
[333942032,1722642288035,341.93225516,9.999e-05,2]
[333942034,1722642306235,209.6606542,9.999e-05,2]
[333942035,1722642314914,156.67847881,9.999e-05,2]
[333942036,1722642343825,663.67519992,9.999e-05,2]
[333942037,1722642380031,-790.84,0.00010959,2]
[333942038,1722642388517,2323.44645924,0.00025,60]
[333942039,1722642391033,429.11566325,9.999e-05,2]
[333942040,1722642409163,196.16518014,9.999e-05,2]
[333942041,1722642414923,156.67847881,9.999e-05,2]
[333942042,1722642426837,1041.15,0.000101,2]
[333942043,1722642433922,205.998322,9.999e-05,2]
[333942044,1722642484656,403.60280079,9.999e-05,2]
[333942045,1722642494674,403.60280079,9.999e-05,2]
[333942046,1722642503891,157.15207628,9.999e-05,2]
[333942047,1722642508925,157.00321085,9.999e-05,2]
[333942048,1722642531745,154.79103211,9.999e-05,2]
[333942049,1722642551919,162.85534246,9.999e-05,2]
[333942050,1722642626758,154.79103211,9.999e-05,2]
[333942073,1722642632742,-154.79103211,0.00012119,2]
[333942074,1722642632753,-300.0,0.00012265,2]
[333942075,1722642632763,-150.20895165,0.00012265,2]
[333942076,1722642632775,-149.79104835,0.00012265,2]
[333942077,1722642632785,-9018.16621426,0.00012266,2]
[333942078,1722642632826,-1722.19903919,0.00012266,2]
[333942079,1722642632840,-1008.66608802,0.00012266,2]
[333942080,1722642632853,-3404.55226998,0.00012266,2]
[333942082,1722642632867,-466.0,0.00012266,2]
[333942090,1722642638650,-2183.38679279,0.00012266,2]
[333942093,1722642638799,-2756.6988607,0.00012266,2]
[333942094,1722642638812,-510.94687324,0.00012266,2]
[333942097,1722642638826,-3829.38386182,0.00012266,2]
[333942100,1722642638839,-171.735751,0.00012986,2]
[333942103,1722642638849,-35326.3474134,0.00013688,2]
[333942105,1722642638859,-500.0,0.00013697,2]
[333942107,1722642638869,-500.0,0.00013697,2]
[333942110,1722642638879,-500.0,0.00013698,2]
[333942112,1722642638891,-500.0,0.00013698,2]
[333942114,1722642638901,-500.0,0.00013698,2]
[333942116,1722642638911,-500.0,0.00013698,2]
[333942118,1722642638922,-500.0,0.00013698,2]
[333942120,1722642638932,-500.0,0.00013698,2]
[333942122,1722642638944,-500.0,0.00013698,2]
[333942123,1722642638954,-505.33990903,0.00013698,2]
[333942124,1722642638964,-196.77357668,0.00013698,2]
[333942125,1722642638975,-500.0,0.00013698,2]
[333942126,1722642638984,-469.55381379,0.00013698,2]
[333942127,1722642638993,-500.0,0.00013698,2]
[333942128,1722642639004,-500.0,0.00013698,2]
[333942129,1722642639013,-500.0,0.00013698,2]
[333942130,1722642639023,-375.7699828,0.00013698,2]
[333942131,1722642639033,-500.0,0.00013698,2]
[333942132,1722642639043,-500.0,0.00013698,2]
[333942133,1722642639055,-500.0,0.00013698,2]
[333942134,1722642639067,-500.0,0.00013698,2]
[333942135,1722642639077,-500.0,0.00013698,2]
[333942136,1722642639089,-405.52945786,0.00013698,2]
[333942137,1722642639105,-500.0,0.00013698,2]
[333942138,1722642639115,-468.82106083,0.00013698,2]
[333942139,1722642639125,-500.0,0.00013698,2]
[333942140,1722642639134,-500.0,0.00013698,2]
[333942141,1722642639146,-500.0,0.00013698,2]
[333942142,1722642639156,-500.0,0.00013698,2]
[333942143,1722642639165,-500.0,0.00013698,2]